[Event "German Bundesliga 2021-22"]
[Site "Germany"]
[Date "2022.04.10"]
[Round "4.3"]
[White "Richter, Michael"]
[Black "Engel, Luis"]
[Result "0-1"]
[ECO "D04"]
[WhiteElo "2496"]
[BlackElo "2564"]
[Annotator "TA"]
[PlyCount "124"]
[EventDate "2022.03.05"]
[EventType "team-tourn"]
[EventCountry "GER"]
[SourceTitle "playchess.com"]
[Source "ChessBase"]
[SourceQuality "1"]
[TimeControl "40/5400+30:1800+30"]

{[%evp 19,124,0,0,9,10,6,17,17,20,8,16,22,23,5,16,0,8,-32,0,0,20,0,40,40,47,47,62,0,0,0,0,-25,0,-17,-22,-15,-17,-26,-19,-17,-15,-25,-25,-37,-37,-62,-62,-64,-58,-79,-71,-80,-52,-100,-35,-33,0,0,0,-2,0,0,0,-9,0,0,0,0,0,-132,-131,-120,-127,-129,-127,-119,-121,-137,-60,-59,-61,-67,-65,-70,-85,-67,-21,-21,-8,-8,-8,-8,-8,-1672,-1157,-6527,-5089,-29964,-29960,-29977,-29978,-29982,-29979,-29979,-29980,-29980,-29976]} 1. d4 {[%emt 0:00:00]} Nf6 {[%emt 0:00:00]} 2. Nf3 {[%emt 0:00:00]} d5 {[%emt 0:00:00]} 3. e3 {[%emt 0:00:00]} c5 {[%emt 0:00:00]} 4. dxc5 {[%emt 0:00:00]} e6 {[%emt 0:00:00]} 5. a3 {[%emt 0:00:00]} a5 {[%emt 0:00:00]} 6. c4 {[%emt 0:00:00]} Bxc5 {[%emt 0:00:00]} 7. Nc3 {[%emt 0:00:00]} O-O {[%emt 0:00:00]} 8. cxd5 {[%emt 0:00:00]} exd5 {[%emt 0:00:00]} 9. Be2 {[%emt 0:00:00]} Nc6 {[%emt 0:00:00]} 10. O-O {[%emt 0:00:00]} Be6 {[%emt 0:05:27]} 11. Nb5 {[%emt 0:06:26] D32: Tarrasch Defence: Sidelines and lines without g3.} Ne4 {[%emt 0:03:04]} 12. Bd2 {[%emt 0:24:22] [#]} Qf6 $146 {[%emt 0:10:56]} ({Predecessor:} 12... Qb6 13. Bc3 Nxc3 14. bxc3 a4 15. Qc2 Qd8 {½-½ (15) Frey Beckman,K (2410)-Dlugy,M (2485) Havana 1985}) 13. Bc3 {[%emt 0:00:18] The position is equal.} Nxc3 {[%emt 0:03:13]} 14. bxc3 {[%emt 0:00:07]} Rac8 {[%emt 0:01:32]} 15. a4 {[%emt 0:00:34]} Rfd8 {[%emt 0:08:21]} 16. Nfd4 {[%emt 0:01:58]} Ne5 {[%emt 0:03:51]} 17. Rb1 {[%emt 0:01:58]} g6 {[%emt 0:05:11]} 18. f4 {[%emt 0:12:39]} Nc6 {[%emt 0:06:10]} 19. Bd3 {[%emt 0:01:00]} Bxd4 {[%emt 0:06:42]} 20. exd4 {[%emt 0:03:36]} Bf5 {[%emt 0:00:40]} 21. Bxf5 {[%emt 0:05:38]} Qxf5 {[%emt 0:00:07]} 22. g4 {[%emt 0:04:25]} Qd7 {[%emt 0:02:02]} 23. Qf3 {[%emt 0:05:35]} (23. f5 $1 $14) 23... f5 $11 {[%emt 0:04:43]} 24. gxf5 {[%emt 0:01:51]} Qxf5 {[%emt 0:00:18]} 25. Rb2 {[%emt 0:03:32][%cal Bb1b2,Bb2g2,Bg2g5,Bg5e5][%mdl 32]} Rd7 {[%emt 0:03:22]} 26. Rg2 {[%emt 0:01:07]} Ne7 {[%emt 0:04:24]} 27. Rg5 {[%emt 0:03:00]} Qf6 {[%emt 0:00:32]} 28. Re5 {[%emt 0:00:47]} Qf7 {[%emt 0:01:29]} 29. Rfe1 {[%emt 0:07:42][%cal Ob5d6]} Nf5 {[%emt 0:03:53] Prevents Nd6.} 30. Qe2 {[%emt 0:01:49]} Ng7 {[%emt 0:04:09]} 31. Rf1 {[%emt 0:05:51]} Rc6 {[%emt 0:02:42]} 32. Kh1 {[%emt 0:03:01]} h6 {[%emt 0:01:33]} 33. Qg4 {[%emt 0:07:12]} Kh7 {[%emt 0:00:57]} 34. h3 {[%emt 0:01:49]} Rf6 {[%emt 0:01:17]} 35. Kh2 {[%emt 0:00:14]} Re7 {[%emt 0:07:25]} 36. Kg2 {[%emt 0:01:16]} (36. Rf2 $15) 36... Re8 {[%emt 0:03:06]} (36... Qf8 $17) 37. Qe2 $15 {[%emt 0:00:37]} Rf8 {[%emt 0:03:08]} 38. Re7 {[%emt 0:00:26]} Re6 {[%emt 0:00:07]} 39. Qxe6 {[%emt 0:00:31]} Nxe6 {[%emt 0:00:32]} 40. Rxf7+ {[%emt 0:00:11]} Rxf7 $11 {[%emt 0:00:04][%mdl 4096] Endgame KRN-KRN} 41. Kg3 {[%emt 0:00:00]} g5 {[%emt 0:00:00][%cal Re6f4]} 42. f5 {[%emt 0:00:00]} Ng7 {[%emt 0:00:00]} 43. Kg4 {[%emt 0:00:00]} Ne8 {[%emt 0:00:00]} 44. Rb1 {[%emt 0:12:49]} (44. Re1 $11 {remains equal.} Nf6+ 45. Kf3) 44... Nf6+ $1 $17 {[%emt 0:00:00]} 45. Kf3 {[%emt 0:00:12]} Ne4 {[%emt 0:00:00] Prevents Nd6. aiming for ...Nd2+.} 46. Ke3 {[%emt 0:00:05] Prevents Nd2.} Re7 $1 {[%emt 0:00:00] Hoping for ...Nxc3+.} (46... Rxf5 47. c4 $15) 47. Kd3 {[%emt 0:02:05] [#]} Nf2+ $1 {[%emt 0:00:00]} 48. Kd2 {[%emt 0:00:11] [#]} Nxh3 {[%emt 0:00:00] &Nero is more active.} ({Black should play} 48... Rd7 $1 $17 49. h4 Ne4+ 50. Ke3 Re7) 49. Nd6 $15 {[%emt 0:01:37]} h5 {[%emt 0:01:10]} 50. f6 {[%emt 0:13:26]} ({But not} 50. Rxb7 Rxb7 51. Nxb7 Nf2 $17) 50... Rd7 {[%emt 0:01:03]} 51. Rxb7 {[%emt 0:00:06]} Rxb7 {[%emt 0:00:05]} 52. Nxb7 {[%emt 0:00:04] KN-KN} h4 {[%emt 0:03:37]} ({Of course not} 52... Kg6 53. Nxa5 g4 54. Ke3 $11) (52... Nf2 $15 53. Nd6 h4) 53. Ke3 $11 {[%emt 0:05:06]} Nf4 {[%emt 0:01:34]} 54. Kf3 {[%emt 0:01:06]} Nh5 {[%emt 0:08:10] White must now prevent ...h3.} 55. f7 {[%emt 0:01:05]} Kg7 {[%emt 0:00:04]} 56. Nd6 $2 {[%emt 0:00:30][%mdl 8192] This costs White the game.} (56. Kg4 $11 Nf6+ 57. Kh3 (57. Kxg5 $2 h3 $19)) 56... h3 $19 {[%emt 0:01:54][%cal Og5g4,Bh4h3,Bh3h2][%mdl 32] Threatens to win with ...g4+!} 57. Kf2 {[%emt 0:00:35]} g4 {[%emt 0:02:26][%cal Bg5g4,Bg4g3][%mdl 32]} 58. Nf5+ {[%emt 0:00:29]} Kf8 {[%emt 0:00:06] Black mates.} 59. Ne3 {[%emt 0:00:24]} g3+ {[%emt 0:00:23]} 60. Kf3 {[%emt 0:00:33]} h2 {[%emt 0:00:33]} 61. Kg2 {[%emt 0:00:17]} Nf4+ {[%emt 0:00:18]} 62. Kh1 {[%emt 0:00:09]} Nd3 {[%emt 0:00:14] Weighted Error Value: White=0.45/Black=0.08 (flawless)} 0-1

[Event "German Bundesliga 2021-22"]
[Site "Germany"]
[Date "2022.04.10"]
[Round "4.3"]
[White "Koch, Thomas"]
[Black "Kollars, Dmitrij"]
[Result "0-1"]
[ECO "D37"]
[WhiteElo "2458"]
[BlackElo "2635"]
[Annotator "TA"]
[PlyCount "118"]
[EventDate "2022.03.05"]
[EventType "team-tourn"]
[EventCountry "GER"]
[SourceTitle "playchess.com"]
[Source "ChessBase"]
[SourceQuality "1"]
[TimeControl "40/5400+30:1800+30"]

{[%evp 17,118,22,22,14,16,4,16,-55,-52,-63,-66,-74,-67,-71,-71,-78,-68,-74,-52,-68,-35,-41,-25,-24,-11,-16,-24,-24,-9,-10,0,-8,-6,-40,-15,-15,-15,-16,-16,-25,-17,-18,-9,-58,-57,-57,-58,-58,-58,-52,-52,-54,-54,-54,-58,-81,-72,-72,-78,-72,-78,-79,-54,-75,-54,-79,-26,-21,-14,-27,0,0,0,0,0,0,0,-210,-204,-261,-266,-245,-216,-194,-234,-453,-443,-432,-422,-384,-373,-6438,-6212,-6266,-6347,-6253,-6187,-4133,-1475,-29987,-2954,-854,-713]} 1. d4 {[%emt 0:00:00]} Nf6 {[%emt 0:00:00]} 2. c4 {[%emt 0:00:00]} e6 {[%emt 0:00:00]} 3. Nf3 {[%emt 0:00:00]} d5 {[%emt 0:00:00]} 4. Nc3 {[%emt 0:00:00]} Nbd7 {[%emt 0:00:00]} 5. Bg5 {[%emt 0:00:00]} h6 {[%emt 0:00:00]} 6. Bh4 {[%emt 0:00:00]} Be7 {[%emt 0:00:00]} 7. e3 {[%emt 0:00:00]} c6 {[%emt 0:00:00]} 8. Bd3 {[%emt 0:00:00]} dxc4 {[%emt 0:00:00]} 9. Bxc4 {[%emt 0:00:00]} b5 {[%emt 0:00:00][%cal Bb7b5,Bb5b4][%mdl 32]} 10. Bd3 {[%emt 0:00:00] D53: Queen's Gambit Declined: 4 Bg5 Be7: Early deviations.} Bb7 {[%emt 0:00:00]} 11. O-O {[%emt 0:00:00]} O-O {[%emt 0:00:00]} 12. e4 {[%emt 0:03:39]} ({White should play} 12. a3 $11) 12... b4 $15 {[%emt 0:02:22]} 13. Na4 {[%emt 0:01:42]} c5 {[%emt 0:02:18] [#]} 14. e5 $146 {[%emt 0:13:40]} ({Predecessor:} 14. Nxc5 Nxc5 15. dxc5 Nxe4 16. Bxe7 Qxe7 17. c6 Bxc6 18. Qc2 Qb7 19. Rfe1 Nf6 20. Be2 {0-1 (43) Semenenko,D-Goryachkina,A (2582) Chess.com INT 2020}) 14... Nd5 {[%emt 0:00:38]} 15. Bxe7 {[%emt 0:00:06]} Qxe7 {[%emt 0:00:08]} 16. Re1 {[%emt 0:00:10]} Rfd8 {[%emt 0:03:55]} 17. Rc1 {[%emt 0:12:53][%cal Ra4c5]} Rac8 {[%emt 0:04:21]} 18. Be4 {[%emt 0:40:51]} Rc7 {[%emt 0:24:10]} 19. Nd2 {[%emt 0:02:13]} Rdc8 {[%emt 0:02:29]} (19... Ba8 $5 {[%cal Rc5d4]}) 20. Nxc5 {[%emt 0:01:30]} Nxc5 {[%emt 0:01:11]} 21. Rxc5 {[%emt 0:00:12]} Rxc5 {[%emt 0:00:30]} 22. dxc5 {[%emt 0:00:06]} Rxc5 {[%emt 0:04:02]} 23. g3 {[%emt 0:01:24]} Nb6 {[%emt 0:06:38]} 24. Nb3 {[%emt 0:06:24]} Rc8 {[%emt 0:01:12]} 25. Qd4 {[%emt 0:04:11]} Rc4 {[%emt 0:05:30]} 26. Qd3 {[%emt 0:00:32] And now Bxb7 would win.} Bxe4 {[%emt 0:00:53]} 27. Rxe4 {[%emt 0:00:06]} Qc7 {[%emt 0:00:04]} 28. Rd4 {[%emt 0:02:47]} Rxd4 {[%emt 0:03:10]} 29. Qxd4 {[%emt 0:03:30]} Qc2 {[%emt 0:00:21]} 30. Qxb4 {[%emt 0:02:42]} (30. Nd2 $11) 30... Qxb2 {[%emt 0:00:27]} 31. Qa5 {[%emt 0:00:59]} Qb1+ {[%emt 0:01:32]} 32. Kg2 {[%emt 0:00:05]} Qe4+ {[%emt 0:00:02]} 33. Kf1 {[%emt 0:04:30]} Qh1+ {[%emt 0:01:59]} (33... Nc4 {seems wilder.} 34. Qxa7 Nxe5 35. Nd2 Qd5) 34. Ke2 {[%emt 0:00:05]} Qxh2 {[%emt 0:00:03]} 35. Qxa7 {[%emt 0:00:14]} Qh5+ {[%emt 0:00:05]} 36. Kf1 {[%emt 0:00:55]} Qh1+ {[%emt 0:07:01]} 37. Ke2 {[%emt 0:00:04]} Qe4+ {[%emt 0:00:14]} 38. Kf1 {[%emt 0:00:10]} Nd5 {[%emt 0:00:05]} 39. Nc5 {[%emt 0:02:17]} Qh1+ {[%emt 0:23:42]} ({But not} 39... Qxe5 40. Nd7 Qf5 41. Qb8+ Kh7 42. Nf8+ Kh8 43. Ng6+ Kh7 44. Nf8+ Kh8 45. Ng6+ Kh7 46. Nf8+ $11) 40. Ke2 {[%emt 0:00:07]} Qb1 {[%emt 0:00:02]} 41. a4 {[%emt 0:00:00]} Nc3+ {[%emt 0:00:00]} (41... h5 $17 42. Qa5 Qc1) 42. Kd2 $11 {[%emt 0:00:00]} Qb2+ {[%emt 0:03:22]} 43. Kd3 {[%emt 0:00:00]} Nd1 {[%emt 0:02:31] Strongly threatening ...Qc3+.} (43... Qxf2 $2 44. Kxc3 Qe1+ 45. Kc4 Qe2+ 46. Kb3 $18) (43... Nd5 $5 {[%cal Rb2f2]} 44. Nd7 Qb1+ 45. Ke2 Qe4+ 46. Kd2 Qb4+ 47. Ke2 Qe4+ 48. Kd2 Qb4+ 49. Ke2 h5 $15) 44. Nd7 {[%emt 0:03:54]} Nxf2+ {[%emt 0:01:40]} 45. Kc4 $1 {[%emt 0:00:08] aiming for Qb8+.} Qe2+ {[%emt 0:02:21]} 46. Kb3 {[%emt 0:01:05]} h5 {[%emt 0:03:32] Hoping for ...Qf3+.} 47. Qd4 $2 {[%emt 0:11:19]} (47. a5 $1 $11 {and White has nothing to worry.}) 47... Ng4 $19 {[%emt 0:08:41]} 48. Kb4 {[%emt 0:05:49] [#]} Ne3 $1 {[%emt 0:00:34] ...Nc2+ is the strong threat.} 49. Ka5 {[%emt 0:01:14]} Nd5 {[%emt 0:08:38]} 50. Nb6 {[%emt 0:00:32]} Qe1+ {[%emt 0:01:24]} 51. Ka6 $2 {[%emt 0:00:24]} (51. Kb5 {was the only chance.} Nc3+ 52. Kc6) 51... Qxg3 {[%emt 0:03:13]} 52. Nxd5 {[%emt 0:02:18]} exd5 {[%emt 0:00:01][%mdl 4096] Endgame KQ-KQ} 53. a5 {[%emt 0:00:16]} h4 {[%emt 0:00:09][%cal Bh5h4,Bh4h3,Bh3h2][%mdl 32] Threatens to win with ...h3.} 54. Kb6 $2 {[%emt 0:07:15]} (54. Kb7 h3 55. a6) 54... h3 {[%emt 0:01:19] ( -> ...h2)} 55. a6 {[%emt 0:00:07]} h2 {[%emt 0:01:55]} 56. a7 {[%emt 0:00:34]} Qb3+ {[%emt 0:01:10]} 57. Kc7 {[%emt 0:01:14]} Qa2 {[%emt 0:00:50]} (57... Qa3 $142 58. Kb7 h1=Q 59. a8=R+ {[#]} Qxa8+ $3 {[%mdl 512]} 60. Kxa8 Qe4) 58. e6 {[%emt 0:03:49]} fxe6 {[%emt 0:01:56]} (58... h1=Q $142 59. Qf2 Qc1+ 60. Kb7 Qxf2 61. a8=Q+ Kh7 62. Qd8 fxe6 63. Qc7 Qcb2+ 64. Kc6 Qb4 65. Qd8 Qbc5+ 66. Kb7 Qa7+ 67. Kc8 Qfc5+ 68. Qc7 Qcxc7#) 59. Qb6 {[%emt 0:00:14]} Kh7 {[%emt 0:03:33] Weighted Error Value: White=0.52/Black=0.28 (precise)} 0-1

[Event "German Bundesliga 2021-22"]
[Site "Germany"]
[Date "2022.04.10"]
[Round "4.3"]
[White "Nestorovic, Nikola"]
[Black "Neiksans, Arturs"]
[Result "1/2-1/2"]
[ECO "D02"]
[WhiteElo "2456"]
[BlackElo "2577"]
[Annotator "TA"]
[PlyCount "40"]
[EventDate "2022.03.05"]
[EventType "team-tourn"]
[EventCountry "GER"]
[SourceTitle "playchess.com"]
[Source "ChessBase"]
[SourceQuality "1"]
[TimeControl "40/5400+30:1800+30"]

{[%evp 9,40,0,0,0,10,-6,23,23,23,22,26,20,28,28,38,10,32,24,37,3,14,13,14,5,16,6,8,0,0,0,0,0,0]} 1. d4 {[%emt 0:00:00]} d5 {[%emt 0:00:00]} 2. Nf3 {[%emt 0:00:00]} e6 {[%emt 0:00:00]} 3. Bg5 {[%emt 0:00:00]} Be7 {[%emt 0:00:00]} 4. h4 {[%emt 0:00:00]} h6 {[%emt 0:00:00]} 5. Bf4 {[%emt 0:00:00]} c5 {[%emt 0:13:48]} 6. c3 {[%emt 0:00:14] D02: 1 d4 d5 2 Nf3 sidelines, including 2...Nf6 3 g3 and 2...Nf6 3 Bf4.} Bd6 {[%emt 0:04:32] [#]} 7. e3 $146 {[%emt 0:07:45]} ({Predecessor:} 7. g3 Nc6 8. e3 Nf6 9. Nbd2 O-O 10. Bd3 Qe7 11. Ne5 {½-½ (11) Casagrande,H (2340)-Sommerbauer,N (2452) Austria 2005}) 7... Qc7 {[%emt 0:12:11]} 8. Bxd6 {[%emt 0:25:31] White has an edge.} Qxd6 {[%emt 0:01:07]} 9. dxc5 {[%emt 0:00:07]} Qxc5 {[%emt 0:00:29]} 10. Qd4 {[%emt 0:00:08]} Qxd4 {[%emt 0:01:28]} 11. cxd4 {[%emt 0:00:41]} Nf6 {[%emt 0:02:33]} 12. Ne5 {[%emt 0:06:44]} Bd7 {[%emt 0:02:46]} 13. Nc3 {[%emt 0:04:33]} Nc6 {[%emt 0:01:00]} 14. Nxd7 {[%emt 0:01:43]} Nxd7 {[%emt 0:02:17] The position is equal.} 15. Kd2 {[%emt 0:04:16]} Ke7 {[%emt 0:02:32]} 16. Be2 {[%emt 0:05:57]} (16. Bd3 {keeps more tension.} Rac8 17. Rab1 Nb4 18. Bb5) 16... Rac8 {[%emt 0:08:37]} 17. Rhc1 {[%emt 0:12:01]} Rhd8 {[%emt 0:02:03]} 18. Bb5 {[%emt 0:05:53]} a6 {[%emt 0:04:21]} 19. Bxc6 {[%emt 0:00:07]} Rxc6 {[%emt 0:00:04]} 20. Ne2 {[%emt 0:00:20]} Rdc8 {[%emt 0:00:04] Weighted Error Value: White=0.07 (flawless) /Black=0.09 (flawless)} 1/2-1/2

[Event "German Bundesliga 2021-22"]
[Site "Germany"]
[Date "2022.04.10"]
[Round "4.4"]
[White "Amin, Bassem"]
[Black "Horvath, Dominik"]
[Result "1-0"]
[ECO "B30"]
[WhiteElo "2682"]
[BlackElo "2483"]
[Annotator "TA"]
[PlyCount "45"]
[EventDate "2022.03.05"]
[EventType "team-tourn"]
[EventCountry "GER"]
[SourceTitle "playchess.com"]
[Source "ChessBase"]
[SourceQuality "1"]
[TimeControl "40/5400+30:1800+30"]

{[%evp 9,45,16,41,50,45,12,1,0,0,0,0,0,0,-21,27,0,18,10,14,12,45,0,0,-14,129,133,131,126,144,142,174,168,149,122,349,329,433,433]} 1. e4 {[%emt 0:00:00]} c5 {[%emt 0:00:00]} 2. Nf3 {[%emt 0:00:00]} Nc6 {[%emt 0:00:00]} 3. Bb5 {[%emt 0:00:00]} e6 {[%emt 0:00:00]} 4. O-O {[%emt 0:00:00]} Nge7 {[%emt 0:00:00]} 5. Re1 {[%emt 0:00:00]} b6 {[%emt 0:00:00]} 6. c3 {[%emt 0:02:42] B30: Sicilian: 2...Nc6 3 Bb5, lines without ...g6.} a6 {[%emt 0:00:00]} 7. Bf1 {[%emt 0:13:27]} d5 {[%emt 0:00:00][%cal Bd7d5,Bd5d4][%mdl 32]} 8. e5 {[%emt 0:01:20] The position is equal.} d4 {[%emt 0:00:00]} 9. d3 {[%emt 0:01:31]} Bb7 {[%emt 0:00:00]} 10. Nbd2 {[%emt 0:01:19]} Ng6 {[%emt 0:11:47]} 11. g3 {[%emt 0:03:24] [#]} Qc7 $146 {[%emt 0:00:48]} (11... Be7 $142) ({Predecessor:} 11... Qd5 12. c4 Qd7 13. Bg2 O-O-O 14. a3 f6 15. exf6 gxf6 16. Ne4 Be7 17. Bh3 f5 {0-1 (76) Markantonaki,H (2174)-Gajcin,M (2198) Terme Catez 2021}) 12. cxd4 {[%emt 0:03:55]} cxd4 {[%emt 0:27:41][%cal Rc6e5]} 13. Bg2 {[%emt 0:01:43]} Nb4 {[%emt 0:06:26]} 14. Nc4 {[%emt 0:04:34]} b5 {[%emt 0:00:17] [#]} 15. Nd6+ {[%emt 0:08:10]} (15. a3 $1 $14) 15... Bxd6 $11 {[%emt 0:00:09]} 16. exd6 {[%emt 0:00:01]} Qc2 {[%emt 0:15:44] [#]} (16... Qxd6 $11 {remains equal.} 17. a3 Nd5) 17. Bd2 $1 $16 {[%emt 0:12:29][%cal Bc1d2,Bd2a5,Ba5c7][%mdl 32]} ({Don't do} 17. Nxd4 $6 Qxd1 18. Rxd1 Bxg2 19. Kxg2 Kd7 $11) 17... Qxd1 {[%emt 0:00:11]} 18. Rexd1 {[%emt 0:00:08]} Nxd3 {[%emt 0:02:46] [#]} 19. b3 {[%emt 0:00:36] Hoping for Ba5.} ({Worse is} 19. Nxd4 Bxg2 20. Kxg2 Nxb2 $15) 19... Bd5 {[%emt 0:23:14]} 20. Ba5 {[%emt 0:05:11]} Nc5 {[%emt 0:00:11]} 21. Rxd4 {[%emt 0:01:06] &Bianco is more active.} Kd7 $2 {[%emt 0:02:38]} (21... Ne4 $16 {was called for.}) 22. Rc1 $18 {[%emt 0:02:23]} Rac8 {[%emt 0:01:49]} 23. Bc7 {[%emt 0:00:19] Weighted Error Value: White=0.10 (very precise) /Black=0.38} 1-0

[Event "German Bundesliga 2021-22"]
[Site "Germany"]
[Date "2022.04.10"]
[Round "4.4"]
[White "Heimann, Andreas"]
[Black "Lemmers, Oscar"]
[Result "1/2-1/2"]
[ECO "B41"]
[WhiteElo "2581"]
[BlackElo "2346"]
[Annotator "TA"]
[PlyCount "43"]
[EventDate "2022.03.05"]
[EventType "team-tourn"]
[EventCountry "GER"]
[SourceTitle "playchess.com"]
[Source "ChessBase"]
[SourceQuality "1"]
[TimeControl "40/5400+30:1800+30"]

{[%evp 11,43,22,20,18,39,50,33,39,68,32,34,31,42,43,34,38,30,0,0,0,5,0,0,0,0,0,0,0,7,11,5,2,18,15]} 1. e4 {[%emt 0:00:00]} c5 {[%emt 0:00:00]} 2. Nf3 {[%emt 0:00:00]} e6 {[%emt 0:00:00]} 3. d4 {[%emt 0:00:00]} cxd4 {[%emt 0:00:00]} 4. Nxd4 {[%emt 0:00:00]} a6 {[%emt 0:00:00]} 5. c4 {[%emt 0:00:00]} Nf6 {[%emt 0:00:00]} 6. Nc3 {[%emt 0:00:00]} Bb4 {[%emt 0:00:00]} 7. Qd3 {[%emt 0:00:00] is cutting edge theory. B41: Sicilian: Kan Variation: 5 c4.} d6 {[%emt 0:00:00]} 8. Nc2 {[%emt 0:00:00]} Bxc3+ {[%emt 0:00:00]} 9. Qxc3 {[%emt 0:00:00] White is slightly better.} O-O {[%emt 0:00:00]} 10. Bd3 {[%emt 0:20:25]} d5 {[%emt 0:08:36]} 11. exd5 {[%emt 0:25:14]} exd5 {[%emt 0:00:16]} 12. O-O {[%emt 0:00:04] Active counter play!} dxc4 {[%emt 0:08:03]} 13. Bxc4 {[%emt 0:00:23] [#]} Qc7 $146 {[%emt 0:08:04]} ({Predecessor:} 13... Nc6 14. b3 Ne4 15. Qf3 Nd2 16. Bxd2 Qxd2 17. Ne3 Ne5 18. Qg3 Nxc4 19. Nxc4 Qb4 {½-½ (67) McShane,L (2667)-Druska,J (2508) Terme Catez 2021}) 14. Qd4 {[%emt 0:00:47]} Nc6 {[%emt 0:11:11] The position is equal.} 15. Qf4 {[%emt 0:01:33]} Ne5 {[%emt 0:02:28]} 16. Ne3 {[%emt 0:09:41]} Nh5 {[%emt 0:03:14] Pair of Knights!} 17. Qh4 {[%emt 0:01:27]} Nxc4 {[%emt 0:00:55]} 18. Nxc4 {[%emt 0:00:08] [#] aiming for Be3.} Be6 {[%emt 0:03:32]} 19. b3 {[%emt 0:00:54]} Bxc4 {[%emt 0:05:20]} 20. bxc4 {[%emt 0:00:16]} Nf6 {[%emt 0:01:20]} 21. Bb2 {[%emt 0:04:00]} Qc6 {[%emt 0:01:30]} 22. Bxf6 {[%emt 0:14:36] Weighted Error Value: White=0.06 (flawless) /Black=0.04 (flawless)} 1/2-1/2

[Event "German Bundesliga 2021-22"]
[Site "Germany"]
[Date "2022.04.10"]
[Round "4.4"]
[White "Dardha, Daniel"]
[Black "Rozentalis, Eduardas"]
[Result "0-1"]
[ECO "E11"]
[WhiteElo "2541"]
[BlackElo "2542"]
[Annotator "TA"]
[PlyCount "110"]
[EventDate "2022.03.05"]
[EventType "team-tourn"]
[EventCountry "GER"]
[SourceTitle "playchess.com"]
[Source "ChessBase"]
[SourceQuality "1"]
[TimeControl "40/5400+30:1800+30"]

{[%evp 15,110,33,41,34,43,43,53,46,50,45,43,43,61,34,39,43,48,41,60,52,101,109,97,100,99,83,83,92,96,76,123,132,131,122,128,129,111,119,116,116,115,51,67,67,67,58,72,55,54,58,60,66,59,59,110,79,152,108,134,106,105,104,91,9,26,-6,157,118,140,0,0,0,0,-31,0,-31,-29,-1143,-1066,-1675,-1680,-2092,-1527,-1868,-1769,-1883,-1616,-9821,-4254,-7224,-11731,-6506,-5214,-29936,-12838,-2386,-2153]} 1. d4 {[%emt 0:00:00]} Nf6 {[%emt 0:00:00]} 2. c4 {[%emt 0:00:00]} e6 {[%emt 0:00:00]} 3. g3 {[%emt 0:00:00]} Bb4+ {[%emt 0:00:00]} 4. Bd2 {[%emt 0:00:00]} c5 {[%emt 0:00:00]} 5. Bxb4 {[%emt 0:00:00]} cxb4 {[%emt 0:00:00]} 6. Bg2 {[%emt 0:00:00]} d5 {[%emt 0:00:00]} 7. Nd2 {[%emt 0:00:00]} O-O {[%emt 0:00:00]} 8. Ngf3 {[%emt 0:00:00]} Nc6 {[%emt 0:00:00]} 9. Qc2 {[%emt 0:00:00] E11: Bogo-Indian.} a5 {[%emt 0:01:28]} 10. O-O {[%emt 0:00:00]} Bd7 {[%emt 0:07:56] [#]} 11. Rac1 $146 {[%emt 0:00:00] White is slightly better.} ({Predecessor:} 11. e4 dxc4 12. Nxc4 Rc8 13. Qd3 b5 14. Ne3 Qe7 15. Rfe1 Rfd8 16. Rad1 b3 17. e5 bxa2 18. exf6 Qxf6 {1-0 (43) Boehnke,M (2125)-Dewenter,U (2120) Germany 2017}) 11... Rc8 {[%emt 0:03:24]} 12. Qd3 {[%emt 0:01:06]} b6 {[%emt 0:03:04]} 13. Rfd1 {[%emt 0:07:37]} Qe7 {[%emt 0:02:37]} 14. Ne5 {[%emt 0:03:29]} Rfd8 {[%emt 0:02:51]} 15. Nxd7 {[%emt 0:01:59]} Qxd7 16. e3 g6 17. cxd5 exd5 (17... Nxd5 $14 18. Nc4 Qc7) 18. Qb5 $16 Qb7 {[#]} 19. Nc4 $1 Rb8 20. Ne5 $1 Na7 {[%cal Bc6a7,Ba7c8,Bc8d6,Bd6f5][%mdl 32]} 21. Qe2 Rbc8 22. h4 (22. Qf3 {with more complications.} Kg7 23. g4 Nc6 24. Qf4) 22... Rxc1 (22... Nc6 $142) 23. Rxc1 Rc8 24. Rxc8+ Nxc8 25. g4 {[%cal Bg3g4,Bg4g5][%mdl 32]} Nd6 26. g5 Nfe4 {[%cal Bf6e4,Be4d2,Bd2c4][%mdl 32]} 27. Qg4 Qe7 28. f3 (28. Bxe4 $16 dxe4 29. Kg2) 28... Nd2 $14 29. Qf4 $1 N2c4 30. Ng4 Nf5 31. h5 $36 {[%mdl 2048] White has good play.} (31. b3 {keeps more tension.} Ncxe3 32. Nf6+ Kg7 33. Qb8) 31... Qd6 {Inhibits Qb8+.} (31... Ncxe3 32. Nf6+) (31... Nfxe3 32. Qb8+ Qf8 33. Nf6+ Kg7 34. h6+ Kh8 35. Qxf8#) 32. Qxd6 Nfxd6 {[%mdl 4096] Endgame KBN-KNN} 33. b3 $1 gxh5 34. Nf6+ (34. bxc4 hxg4 35. c5 bxc5 36. dxc5 Ne8 37. fxg4 Nc7 $17) 34... Kf8 (34... Kg7 $14) 35. Nxd5 (35. bxc4 dxc4 36. f4 (36. Nxh5 $2 b3 $19) (36. Nxh7+ $2 Kg7 $19) 36... a4 $19) 35... Na3 (35... Nb2 $142) 36. Nxb6 Nab5 37. d5 Nc3 38. e4 Nxa2 39. e5 ({White should play} 39. Nd7+ $16 Ke8 40. Nc5) 39... Nb5 40. d6 {Black must now prevent f4.} Nac3 $2 ({Black should try} 40... Nc1 $11) 41. Kf2 $16 {Hoping for Ke3.} Nd4 42. Bh3 ({White has to play} 42. f4 $1 $16) 42... Ke8 $11 (42... Nxb3 $2 43. d7 Ke7 44. Nc8+ Kd8 45. Nd6 Nd1+ 46. Ke1 $18) 43. f4 {[%cal Bf3f4,Bf4f5][%mdl 32]} ({Don't play} 43. Bd7+ Kd8 44. Ke3 Nxb3 $17) 43... Nxb3 {Strongly threatening ...Nc5. Pair of Knights!} 44. f5 (44. Ke3 $5 {[%cal Rh3d7]}) 44... a4 (44... Nc5 $5 {[%cal Ra5a4]} 45. Bg2 a4 46. Bc6+ Kd8 $15) 45. Ke3 {[%cal Og5g6] g6! is the strong threat.} Nc5 (45... a3 46. d7+ Kd8 47. e6 fxe6 48. g6 hxg6 49. fxg6 $18) 46. Kd4 $2 {[%mdl 8192] [#] This move loses the game for White.} (46. Bg2 $11 a3 47. Bc6+ Kd8 48. e6 Nxe6 49. fxe6 fxe6 50. Nd7 Nd5+ 51. Kd2) 46... a3 $1 $19 47. g6 {[#]} (47. Kxc5 a2) 47... hxg6 $1 48. fxg6 {[#]} (48. Kc4 a2) 48... fxg6 $1 49. Kxc5 (49. e6 a2) 49... a2 50. Bd7+ {[#]} Kf8 $1 (50... Kd8 {is a self mate.} 51. e6 Ne4+ 52. Kc6 Nxd6 53. Kxd6 a1=Q 54. e7#) 51. e6 Ne4+ 52. Kc6 a1=Q (52... Nxd6 $2 53. Kxd6 Kg7 54. e7 $18) 53. e7+ Kg7 54. Be6 Qe5 {[%csl LRd6,LRe6] ( -> ...Qc5+)} 55. e8=N+ {[%emt 0:50:00]} Kh6 {Weighted Error Value: White=0.83/Black=0.13 (very precise)} 0-1